fUST/lending_fUST_20260525
["ID","MTS","AMOUNT","RATE_DAILY","PERIOD"]
[422979904,1779700243000,-151.0,0.0001,2]
[422979912,1779700243000,-151.0,0.0001,2]
[422979913,1779700243000,-151.0,0.0001,2]
[422979911,1779700243000,-151.0,0.0001,2]
[422979901,1779700243000,-500.0,9.863e-05,2]
[422979914,1779700243000,-151.0,0.0001,2]
[422979933,1779700243000,-500.0,0.00010136,2]
[422979918,1779700243000,-151.0,0.0001,2]
[422979920,1779700243000,-151.0,0.0001,2]
[422979928,1779700243000,-500.0,0.00010136,2]
[422979924,1779700243000,-151.0,0.0001,2]
[422979925,1779700243000,-151.0,0.0001,2]
[422979926,1779700243000,-151.0,0.0001,2]
[422979930,1779700243000,-500.0,0.00010136,2]
[422979922,1779700243000,-151.0,0.0001,2]
[422979929,1779700243000,-500.0,0.00010136,2]
[422979931,1779700243000,-1512.1207,0.00010136,2]
[422979927,1779700243000,-151.0,0.0001,2]
[422979932,1779700243000,-246.75770995,0.00010136,2]
[422979894,1779700243000,-500.0,9.863e-05,2]
[422979947,1779700243000,-500.0,0.00010136,2]
[422979916,1779700243000,-151.0,0.0001,2]
[422979897,1779700243000,-500.0,9.863e-05,2]
[422979881,1779700243000,-500.0,9.863e-05,2]
[422979893,1779700243000,-500.0,9.863e-05,2]
[422979867,1779700243000,-500.0,9.862e-05,2]
[422979873,1779700243000,-1512.1207,9.863e-05,2]
[422979944,1779700243000,-500.0,0.00010136,2]
[422979868,1779700243000,-500.0,9.862e-05,2]
[422979870,1779700243000,-500.0,9.863e-05,2]
[422979871,1779700243000,-500.0,9.863e-05,2]
[422979869,1779700243000,-500.0,9.862e-05,2]
[422979875,1779700243000,-795.12,9.863e-05,2]
[422979886,1779700243000,-500.0,9.863e-05,2]
[422979885,1779700243000,-736.36,9.863e-05,2]
[422979880,1779700243000,-500.0,9.863e-05,2]
[422979882,1779700243000,-500.0,9.863e-05,2]
[422979883,1779700243000,-500.0,9.863e-05,2]
[422979877,1779700243000,-500.0,9.863e-05,2]
[422979874,1779700243000,-500.0,9.863e-05,2]
[422979879,1779700243000,-500.0,9.863e-05,2]
[422979878,1779700243000,-500.0,9.863e-05,2]
[422979876,1779700243000,-500.0,9.863e-05,2]
[422979884,1779700243000,-1052.47,9.863e-05,2]
[422979888,1779700243000,-500.0,9.863e-05,2]
[422979889,1779700243000,-189.77838304,9.863e-05,2]
[422979887,1779700243000,-583.16,9.863e-05,2]
[422979891,1779700243000,-500.0,9.863e-05,2]
[422979899,1779700243000,-500.0,9.863e-05,2]
[422979890,1779700243000,-500.0,9.863e-05,2]
[422979892,1779700243000,-500.0,9.863e-05,2]
[422979898,1779700243000,-500.0,9.863e-05,2]
[422979896,1779700243000,-265.59,9.863e-05,2]
[422979900,1779700243000,-748.91,9.863e-05,2]
[422979895,1779700243000,-964.47,9.863e-05,2]
[422979872,1779700243000,-500.0,9.863e-05,2]
[422979945,1779700243000,-500.0,0.00010136,2]
[422979946,1779700243000,-500.0,0.00010136,2]
[422979977,1779700243000,-500.0,0.00010136,2]
[422979976,1779700243000,-500.0,0.00010136,2]
[422979973,1779700243000,-320.04,0.00010136,2]
[422979985,1779700243000,-583.16,0.00010136,2]
[422979975,1779700243000,-500.0,0.00010136,2]
[422979978,1779700243000,-500.0,0.00010136,2]
[422979986,1779700243000,-500.0,0.00010136,2]
[422979983,1779700243000,-736.36,0.00010136,2]
[422979980,1779700243000,-500.0,0.00010136,2]
[422979982,1779700243000,-1052.47,0.00010136,2]
[422979981,1779700243000,-500.0,0.00010136,2]
[422979979,1779700243000,-500.0,0.00010136,2]
[422979988,1779700243000,-500.0,0.00010136,2]
[422980001,1779700243000,-748.91,0.00010136,2]
[422979984,1779700243000,-303.23061934,0.00010136,2]
[422979987,1779700243000,-500.0,0.00010136,2]
[422979999,1779700243000,-500.0,0.00010136,2]
[422979990,1779700243000,-500.0,0.00010136,2]
[422979989,1779700243000,-500.0,0.00010136,2]
[422980000,1779700243000,-500.0,0.00010136,2]
[422979991,1779700243000,-500.0,0.00010136,2]
[422979997,1779700243000,-500.0,0.00010136,2]
[422979995,1779700243000,-500.0,0.00010136,2]
[422979993,1779700243000,-500.0,0.00010136,2]
[422979992,1779700243000,-964.47,0.00010136,2]
[422980004,1779700243000,-177.0,0.00010219,2]
[422980003,1779700243000,-500.0,0.00010136,2]
[422979943,1779700243000,-1338.01,0.00010136,2]
[422980006,1779700243000,-156.07438578,0.0001039,2]
[422980007,1779700243000,-151.5,0.0001039,2]
[422980002,1779700243000,-500.0,0.00010136,2]
[422979974,1779700243000,-500.0,0.00010136,2]
[422980005,1779700243000,-151.5,0.0001039,2]
[422979971,1779700243000,-500.0,0.00010136,2]
[422979969,1779700243000,-500.0,0.00010136,2]
[422979936,1779700243000,-795.12,0.00010136,2]
[422979934,1779700243000,-422.69785005,0.00010136,2]
[422979937,1779700243000,-500.0,0.00010136,2]
[422979940,1779700243000,-366.81751904,0.00010136,2]
[422979942,1779700243000,-500.0,0.00010136,2]
[422979938,1779700243000,-500.0,0.00010136,2]
[422979949,1779700243000,-589.45526206,0.00010136,2]
[422979948,1779700243000,-500.0,0.00010136,2]
[422979959,1779700243000,-233.4659586,0.00010136,2]
[422979950,1779700243000,-500.0,0.00010136,2]
[422979951,1779700243000,-500.0,0.00010136,2]
[422979960,1779700243000,-500.0,0.00010136,2]
[422979952,1779700243000,-500.0,0.00010136,2]
[422979953,1779700243000,-500.0,0.00010136,2]
[422979935,1779700243000,-500.0,0.00010136,2]
[422979958,1779700243000,-615.92427851,0.00010136,2]
[422979955,1779700243000,-500.0,0.00010136,2]
[422979967,1779700243000,-500.0,0.00010136,2]
[422979968,1779700243000,-500.0,0.00010136,2]
[422979972,1779700243000,-914.14,0.00010136,2]
[422979964,1779700243000,-500.0,0.00010136,2]
[422979963,1779700243000,-500.0,0.00010136,2]
[422979970,1779700243000,-500.0,0.00010136,2]
[422979965,1779700243000,-500.0,0.00010136,2]
[422979966,1779700243000,-500.0,0.00010136,2]
[422979961,1779700243000,-500.0,0.00010136,2]
[422979956,1779700243000,-500.0,0.00010136,2]
[422979954,1779700243000,-500.0,0.00010136,2]
[422979962,1779700243000,-578.95,0.00010136,2]
[422979957,1779700243000,-500.0,0.00010136,2]
[422980048,1779700244000,-500.0,0.0001039,2]
[422980064,1779700244000,-404.20686388,0.0001041,2]
[422980049,1779700244000,-500.0,0.0001039,2]
[422980050,1779700244000,-502.50210824,0.0001039,2]
[422980051,1779700244000,-500.0,0.0001041,2]
[422980044,1779700244000,-500.0,0.0001039,2]
[422980045,1779700244000,-500.0,0.0001039,2]
[422980046,1779700244000,-500.0,0.0001039,2]
[422980042,1779700244000,-500.0,0.0001039,2]
[422980040,1779700244000,-252.52313573,0.0001039,2]
[422980058,1779700244000,-500.0,0.0001041,2]
[422980043,1779700244000,-500.0,0.0001039,2]
[422980041,1779700244000,-500.0,0.0001039,2]
[422980054,1779700244000,-500.0,0.0001041,2]
[422980047,1779700244000,-500.0,0.0001039,2]
[422980056,1779700244000,-500.0,0.0001041,2]
[422980053,1779700244000,-500.0,0.0001041,2]
[422980052,1779700244000,-1512.1207,0.0001041,2]
[422980057,1779700244000,-500.0,0.0001041,2]
[422980055,1779700244000,-795.12,0.0001041,2]
[422980062,1779700244000,-500.0,0.0001041,2]
[422980072,1779700244000,-500.0,0.0001041,2]
[422980073,1779700244000,-578.95,0.0001041,2]
[422980061,1779700244000,-500.0,0.0001041,2]
[422980063,1779700244000,-500.0,0.0001041,2]
[422980065,1779700244000,-500.0,0.0001041,2]
[422980039,1779700244000,-151.5,0.0001039,2]
[422980059,1779700244000,-1338.01,0.0001041,2]
[422980038,1779700244000,-151.5,0.0001039,2]
[422980019,1779700244000,-500.0,0.0001039,2]
[422980033,1779700244000,-500.0,0.0001039,2]
[422980014,1779700244000,-500.0,0.0001039,2]
[422980015,1779700244000,-500.0,0.0001039,2]
[422980016,1779700244000,-500.0,0.0001039,2]
[422980008,1779700244000,-155.35248345,0.0001039,2]
[422980011,1779700244000,-151.5,0.0001039,2]
[422980012,1779700244000,-151.5,0.0001039,2]
[422980009,1779700244000,-151.5,0.0001039,2]
[422980010,1779700244000,-273.58279205,0.0001039,2]
[422980013,1779700244000,-172.5757068,0.0001039,2]
[422980018,1779700244000,-500.0,0.0001039,2]
[422980028,1779700244000,-151.5,0.0001039,2]
[422980029,1779700244000,-500.0,0.0001039,2]
[422980021,1779700244000,-500.0,0.0001039,2]
[422980017,1779700244000,-500.0,0.0001039,2]
[422980020,1779700244000,-500.0,0.0001039,2]
[422980024,1779700244000,-151.5,0.0001039,2]
[422980027,1779700244000,-298.01446121,0.0001039,2]
[422980025,1779700244000,-151.5,0.0001039,2]
[422980022,1779700244000,-205.61067487,0.0001039,2]
[422980026,1779700244000,-500.0,0.0001039,2]
[422980023,1779700244000,-500.0,0.0001039,2]
[422980030,1779700244000,-160.49928769,0.0001039,2]
[422980035,1779700244000,-151.5,0.0001039,2]
[422980034,1779700244000,-500.0,0.0001039,2]
[422980037,1779700244000,-151.5,0.0001039,2]
[422980031,1779700244000,-500.0,0.0001039,2]
[422980032,1779700244000,-500.0,0.0001039,2]
[422980036,1779700244000,-593.06276895,0.0001039,2]
[422980066,1779700244000,-500.0,0.0001041,2]
[422980060,1779700244000,-628.21667168,0.0001041,2]
[422980070,1779700244000,-516.25677923,0.0001041,2]
[422980104,1779700244000,-500.0,0.0001041,2]
[422980112,1779700244000,-795.12,0.00010684,2]
[422980113,1779700244000,-500.0,0.00010684,2]
[422980103,1779700244000,-500.0,0.0001041,2]
[422980107,1779700244000,-500.0,0.0001041,2]
[422980108,1779700244000,-500.0,0.0001041,2]
[422980106,1779700244000,-748.91,0.0001041,2]
[422980110,1779700244000,-1004.8344,0.00010684,2]
[422980109,1779700244000,-1198.03430735,0.00010614,2]
[422980105,1779700244000,-500.0,0.0001041,2]
[422980111,1779700244000,-500.0,0.00010684,2]
[422980115,1779700244000,-500.0,0.00010684,2]
[422980114,1779700244000,-500.0,0.00010684,2]
[422980126,1779700244000,-507.2863,0.00010684,2]
[422980118,1779700244000,-500.0,0.00010684,2]
[422980116,1779700244000,-1338.01,0.00010684,2]
[422980125,1779700244000,-500.0,0.00010684,2]
[422980117,1779700244000,-500.0,0.00010684,2]
[422980119,1779700244000,-500.0,0.00010684,2]
[422980123,1779700244000,-500.0,0.00010684,2]
[422980121,1779700244000,-363.24044085,0.00010684,2]
[422980120,1779700244000,-500.0,0.00010684,2]
[422980124,1779700244000,-500.0,0.00010684,2]
[422980122,1779700244000,-578.95,0.00010684,2]
[422980127,1779700244000,-500.0,0.00010684,2]
[422980129,1779700244000,-500.0,0.00010684,2]
[422980071,1779700244000,-569.65,0.0001041,2]
[422980101,1779700244000,-500.0,0.0001041,2]
[422980102,1779700244000,-500.0,0.0001041,2]
[422980128,1779700244000,-500.0,0.00010684,2]
[422980093,1779700244000,-736.36,0.0001041,2]
[422980094,1779700244000,-583.16,0.0001041,2]
[422980069,1779700244000,-364.9394346,0.0001041,2]
[422980067,1779700244000,-500.0,0.0001041,2]
[422980074,1779700244000,-500.0,0.0001041,2]
[422980078,1779700244000,-500.0,0.0001041,2]
[422980079,1779700244000,-500.0,0.0001041,2]
[422980076,1779700244000,-500.0,0.0001041,2]
[422980077,1779700244000,-500.0,0.0001041,2]
[422980075,1779700244000,-500.0,0.0001041,2]
[422980082,1779700244000,-500.0,0.0001041,2]
[422980084,1779700244000,-640.42,0.0001041,2]
[422980080,1779700244000,-500.0,0.0001041,2]
[422980086,1779700244000,-500.0,0.0001041,2]
[422980087,1779700244000,-500.0,0.0001041,2]
[422980068,1779700244000,-500.0,0.0001041,2]
[422980085,1779700244000,-500.0,0.0001041,2]
[422980097,1779700244000,-180.13,0.0001041,2]
[422980098,1779700244000,-500.0,0.0001041,2]
[422980096,1779700244000,-500.0,0.0001041,2]
[422980095,1779700244000,-500.0,0.0001041,2]
[422980083,1779700244000,-914.14,0.0001041,2]
[422980088,1779700244000,-500.0,0.0001041,2]
[422980092,1779700244000,-1052.47,0.0001041,2]
[422980091,1779700244000,-500.0,0.0001041,2]
[422980100,1779700244000,-964.47,0.0001041,2]
[422980099,1779700244000,-500.0,0.0001041,2]
[422980089,1779700244000,-500.0,0.0001041,2]
[422980081,1779700244000,-500.0,0.0001041,2]
[422980090,1779700244000,-500.0,0.0001041,2]
[422980171,1779700245000,-500.0,0.00010958,2]
[422980172,1779700245000,-1052.47,0.00010958,2]
[422980169,1779700245000,-500.0,0.00010958,2]
[422980167,1779700245000,-914.14,0.00010958,2]
[422980159,1779700245000,-598.01223545,0.00010958,2]
[422980165,1779700245000,-500.0,0.00010958,2]
[422980164,1779700245000,-500.0,0.00010958,2]
[422980161,1779700245000,-500.0,0.00010958,2]
[422980162,1779700245000,-500.0,0.00010958,2]
[422980163,1779700245000,-1512.1207,0.00010958,2]
[422980166,1779700245000,-236.0706516,0.00010958,2]
[422980175,1779700245000,-500.0,0.00010958,2]
[422980178,1779700245000,-964.47,0.00010958,2]
[422980173,1779700245000,-736.36,0.00010958,2]
[422980174,1779700245000,-583.16,0.00010958,2]
[422980176,1779700245000,-500.0,0.00010958,2]
[422980170,1779700245000,-500.0,0.00010958,2]
[422980188,1779700245000,-245.07823108,0.000112,2]
[422980179,1779700245000,-292.41,0.00010958,2]
[422980185,1779700245000,-160.0,0.00011154,2]
[422980180,1779700245000,-748.91,0.00010958,2]
[422980189,1779700245000,-164.0470465,0.000112,2]
[422980181,1779700245000,-500.0,0.00010958,2]
[422980160,1779700245000,-500.0,0.00010958,2]
[422980182,1779700245000,-152.0,0.00010997,7]
[422980168,1779700245000,-500.0,0.00010958,2]
[422980156,1779700245000,-500.0,0.00010958,2]
[422980150,1779700245000,-152.0,0.00010915,7]
[422980155,1779700245000,-611.8543049,0.00010958,2]
[422980177,1779700245000,-500.0,0.00010958,2]
[422980132,1779700245000,-500.0,0.00010684,2]
[422980131,1779700245000,-914.14,0.00010684,2]
[422980136,1779700245000,-500.0,0.00010684,2]
[422980134,1779700245000,-500.0,0.00010684,2]
[422980130,1779700245000,-500.0,0.00010684,2]
[422980135,1779700245000,-500.0,0.00010684,2]
[422980133,1779700245000,-500.0,0.00010684,2]
[422980138,1779700245000,-1052.47,0.00010684,2]
[422980137,1779700245000,-500.0,0.00010684,2]
[422980139,1779700245000,-736.36,0.00010684,2]
[422980152,1779700245000,-500.0,0.00010958,2]
[422980157,1779700245000,-500.0,0.00010958,2]
[422980149,1779700245000,-500.0,0.00010684,2]
[422980148,1779700245000,-748.91,0.00010684,2]
[422980146,1779700245000,-500.0,0.00010684,2]
[422980147,1779700245000,-271.2,0.00010684,2]
[422980142,1779700245000,-500.0,0.00010684,2]
[422980145,1779700245000,-500.0,0.00010684,2]
[422980144,1779700245000,-964.47,0.00010684,2]
[422980141,1779700245000,-500.0,0.00010684,2]
[422980143,1779700245000,-500.0,0.00010684,2]
[422980151,1779700245000,-795.12,0.00010958,2]
[422980153,1779700245000,-1338.01,0.00010958,2]
[422980154,1779700245000,-456.97532741,0.00010958,2]
[422980158,1779700245000,-578.95,0.00010958,2]
[422980140,1779700245000,-583.16,0.00010684,2]
[422980184,1779700245000,-460.04411728,0.00011001,2]
[422980190,1779700245000,-5607.83833477,0.000112,2]
[422980187,1779700245000,-161.74769687,0.00011154,2]
[422980221,1779700245000,-164.0470465,0.000114,2]
[422980220,1779700245000,-5607.83833477,0.000113,2]
[422980224,1779700245000,-416.18295855,0.0001143,2]
[422980223,1779700245000,-5607.83833477,0.000114,2]
[422980226,1779700245000,-5607.83833477,0.000115,2]
[422980229,1779700245000,-500.0,0.00011506,2]
[422980228,1779700245000,-1338.01,0.00011506,2]
[422980227,1779700245000,-795.12,0.00011506,2]
[422980230,1779700245000,-578.95,0.00011506,2]
[422980231,1779700245000,-500.0,0.00011506,2]
[422980232,1779700245000,-500.0,0.00011506,2]
[422980235,1779700245000,-1376.8735,0.00011506,2]
[422980234,1779700245000,-500.0,0.00011506,2]
[422980248,1779700245000,-736.36,0.00011506,2]
[422980237,1779700245000,-914.14,0.00011506,2]
[422980254,1779700245000,-500.0,0.00011506,2]
[422980250,1779700245000,-583.16,0.00011506,2]
[422980255,1779700245000,-500.0,0.00011506,2]
[422980252,1779700245000,-500.0,0.00011506,2]
[422980239,1779700245000,-500.0,0.00011506,2]
[422980258,1779700245000,-964.47,0.00011506,2]
[422980242,1779700245000,-500.0,0.00011506,2]
[422980243,1779700245000,-500.0,0.00011506,2]
[422980246,1779700245000,-1052.47,0.00011506,2]
[422980245,1779700245000,-531.56,0.00011506,2]
[422980186,1779700245000,-160.0,0.00011154,2]
[422980260,1779700245000,-748.91,0.00011506,2]
[422980218,1779700245000,-487.18180765,0.00011247,2]
[422980219,1779700245000,-164.0470465,0.000113,2]
[422980233,1779700245000,-500.0,0.00011506,2]
[422980213,1779700245000,-500.0,0.00011232,2]
[422980183,1779700245000,-152.0,0.00010997,7]
[422980217,1779700245000,-213.28,0.00011232,2]
[422980191,1779700245000,-795.12,0.00011232,2]
[422980193,1779700245000,-500.0,0.00011232,2]
[422980195,1779700245000,-160.0,0.00011232,2]
[422980203,1779700245000,-500.0,0.00011232,2]
[422980192,1779700245000,-1338.01,0.00011232,2]
[422980202,1779700245000,-500.0,0.00011232,2]
[422980196,1779700245000,-160.0,0.00011232,2]
[422980199,1779700245000,-500.0,0.00011232,2]
[422980201,1779700245000,-1512.1207,0.00011232,2]
[422980197,1779700245000,-160.0,0.00011232,2]
[422980200,1779700245000,-500.0,0.00011232,2]
[422980194,1779700245000,-578.95,0.00011232,2]
[422980212,1779700245000,-500.0,0.00011232,2]
[422980205,1779700245000,-500.0,0.00011232,2]
[422980204,1779700245000,-914.14,0.00011232,2]
[422980216,1779700245000,-748.91,0.00011232,2]
[422980215,1779700245000,-964.47,0.00011232,2]
[422980207,1779700245000,-500.0,0.00011232,2]
[422980209,1779700245000,-1052.47,0.00011232,2]
[422980206,1779700245000,-500.0,0.00011232,2]
[422980208,1779700245000,-500.0,0.00011232,2]
[422980211,1779700245000,-583.16,0.00011232,2]
[422980214,1779700245000,-500.0,0.00011232,2]
[422980198,1779700245000,-170.37651521,0.00011232,2]
[422980210,1779700245000,-736.36,0.00011232,2]
[422980350,1779700246000,-578.95,0.00012328,2]
[422980352,1779700246000,-500.0,0.00012328,2]
[422980325,1779700246000,-736.36,0.00012054,2]
[422980342,1779700246000,-187.32,0.000123,2]
[422980331,1779700246000,-500.0,0.00012054,2]
[422980338,1779700246000,-5607.83833477,0.000122,2]
[422980329,1779700246000,-500.0,0.00012054,2]
[422980336,1779700246000,-5607.83833477,0.000121,2]
[422980333,1779700246000,-964.47,0.00012054,2]
[422980327,1779700246000,-583.16,0.00012054,2]
[422980320,1779700246000,-914.14,0.00012054,2]
[422980344,1779700246000,-795.12,0.00012328,2]
[422980335,1779700246000,-748.91,0.00012054,2]
[422980346,1779700246000,-1338.01,0.00012328,2]
[422980366,1779700246000,-500.0,0.00012328,2]
[422980354,1779700246000,-500.0,0.00012328,2]
[422980359,1779700246000,-1052.47,0.00012328,2]
[422980356,1779700246000,-914.14,0.00012328,2]
[422980358,1779700246000,-500.0,0.00012328,2]
[422980375,1779700246000,-1338.01,0.00012602,2]
[422980362,1779700246000,-736.36,0.00012328,2]
[422980363,1779700246000,-583.16,0.00012328,2]
[422980377,1779700246000,-500.0,0.00012602,2]
[422980369,1779700246000,-964.47,0.00012328,2]
[422980372,1779700246000,-748.91,0.00012328,2]
[422980367,1779700246000,-500.0,0.00012328,2]
[422980379,1779700246000,-578.95,0.00012602,2]
[422980373,1779700246000,-795.12,0.00012602,2]
[422980319,1779700246000,-458.12,0.00012054,2]
[422980348,1779700246000,-500.0,0.00012328,2]
[422980323,1779700246000,-1052.47,0.00012054,2]
[422980266,1779700246000,-795.12,0.0001178,2]
[422980321,1779700246000,-498.62,0.00012054,2]
[422980381,1779700246000,-500.0,0.00012602,2]
[422980262,1779700246000,-5607.83833477,0.000116,2]
[422980270,1779700246000,-500.0,0.0001178,2]
[422980272,1779700246000,-578.95,0.0001178,2]
[422980274,1779700246000,-500.0,0.0001178,2]
[422980276,1779700246000,-500.0,0.0001178,2]
[422980278,1779700246000,-500.0,0.0001178,2]
[422980268,1779700246000,-1338.01,0.0001178,2]
[422980264,1779700246000,-5607.83833477,0.000117,2]
[422980280,1779700246000,-229.83,0.0001178,2]
[422980282,1779700246000,-914.14,0.0001178,2]
[422980284,1779700246000,-500.0,0.0001178,2]
[422980288,1779700246000,-500.0,0.0001178,2]
[422980290,1779700246000,-1052.47,0.0001178,2]
[422980316,1779700246000,-578.95,0.00012054,2]
[422980292,1779700246000,-736.36,0.0001178,2]
[422980306,1779700246000,-5607.83833477,0.000118,2]
[422980308,1779700246000,-5607.83833477,0.00012,2]
[422980302,1779700246000,-964.47,0.0001178,2]
[422980296,1779700246000,-353.76,0.0001178,2]
[422980298,1779700246000,-500.0,0.0001178,2]
[422980286,1779700246000,-380.67,0.0001178,2]
[422980304,1779700246000,-748.91,0.0001178,2]
[422980300,1779700246000,-500.0,0.0001178,2]
[422980310,1779700246000,-795.12,0.00012054,2]
[422980314,1779700246000,-500.0,0.00012054,2]
[422980322,1779700246000,-500.0,0.00012054,2]
[422980312,1779700246000,-1338.01,0.00012054,2]
[422980317,1779700246000,-500.0,0.00012054,2]
[422980318,1779700246000,-500.0,0.00012054,2]
[422980294,1779700246000,-583.16,0.0001178,2]
[422980393,1779700246000,-583.16,0.00012602,2]
[422980340,1779700246000,-204.0,0.00012219,2]
[422980395,1779700246000,-500.0,0.00012602,2]
[422980456,1779700246000,-964.47,0.0001315,2]
[422980458,1779700246000,-748.91,0.0001315,2]
[422980460,1779700246000,-795.12,0.00013424,2]
[422980470,1779700246000,-914.14,0.00013424,2]
[422980472,1779700246000,-1052.47,0.00013424,2]
[422980474,1779700246000,-736.36,0.00013424,2]
[422980462,1779700246000,-1338.01,0.00013424,2]
[422980478,1779700246000,-964.47,0.00013424,2]
[422980476,1779700246000,-583.16,0.00013424,2]
[422980480,1779700246000,-748.91,0.00013424,2]
[422980464,1779700246000,-500.0,0.00013424,2]
[422980466,1779700246000,-578.95,0.00013424,2]
[422980483,1779700246000,-1338.01,0.00013698,2]
[422980468,1779700246000,-500.0,0.00013424,2]
[422980451,1779700246000,-583.16,0.0001315,2]
[422980481,1779700246000,-795.12,0.00013698,2]
[422980487,1779700246000,-578.95,0.00013698,2]
[422980496,1779700246000,-583.16,0.00013698,2]
[422980501,1779700246000,-1000.0,0.00013699,2]
[422980494,1779700246000,-736.36,0.00013698,2]
[422980498,1779700246000,-964.47,0.00013698,2]
[422980491,1779700246000,-914.14,0.00013698,2]
[422980499,1779700246000,-748.91,0.00013698,2]
[422980505,1779700246000,-500.0,0.00013699,2]
[422980492,1779700246000,-1052.47,0.00013698,2]
[422980503,1779700246000,-500.0,0.00013699,2]
[422980506,1779700246000,-500.0,0.00013699,2]
[422980508,1779700246000,-500.0,0.00013699,2]
[422980510,1779700246000,-500.0,0.00013699,2]
[422980391,1779700246000,-736.36,0.00012602,2]
[422980485,1779700246000,-500.0,0.00013698,2]
[422980454,1779700246000,-249.03585224,0.0001315,2]
[422980489,1779700246000,-347.61,0.00013698,2]
[422980452,1779700246000,-573.02,0.0001315,2]
[422980445,1779700246000,-348.12,0.0001315,2]
[422980383,1779700246000,-500.0,0.00012602,2]
[422980389,1779700246000,-1052.47,0.00012602,2]
[422980399,1779700246000,-964.47,0.00012602,2]
[422980385,1779700246000,-914.14,0.00012602,2]
[422980397,1779700246000,-500.0,0.00012602,2]
[422980387,1779700246000,-500.0,0.00012602,2]
[422980403,1779700246000,-795.12,0.00012876,2]
[422980401,1779700246000,-748.91,0.00012602,2]
[422980406,1779700246000,-500.0,0.00012876,2]
[422980408,1779700246000,-578.95,0.00012876,2]
[422980418,1779700246000,-1052.47,0.00012876,2]
[422980414,1779700246000,-914.14,0.00012876,2]
[422980422,1779700246000,-583.16,0.00012876,2]
[422980412,1779700246000,-500.0,0.00012876,2]
[422980404,1779700246000,-1338.01,0.00012876,2]
[422980410,1779700246000,-492.43,0.00012876,2]
[422980449,1779700246000,-736.36,0.0001315,2]
[422980416,1779700246000,-500.0,0.00012876,2]
[422980447,1779700246000,-1052.47,0.0001315,2]
[422980441,1779700246000,-500.0,0.0001315,2]
[422980434,1779700246000,-1338.01,0.0001315,2]
[422980439,1779700246000,-578.95,0.0001315,2]
[422980437,1779700246000,-500.0,0.0001315,2]
[422980443,1779700246000,-914.14,0.0001315,2]
[422980430,1779700246000,-748.91,0.00012876,2]
[422980428,1779700246000,-964.47,0.00012876,2]
[422980426,1779700246000,-500.0,0.00012876,2]
[422980424,1779700246000,-500.0,0.00012876,2]
[422980420,1779700246000,-736.36,0.00012876,2]
[422980432,1779700246000,-795.12,0.0001315,2]
[422980562,1779700247000,-1338.01,0.00014246,2]
[422980568,1779700247000,-583.16,0.00014246,2]
[422980569,1779700247000,-964.47,0.00014246,2]
[422980563,1779700247000,-500.0,0.00014246,2]
[422980560,1779700247000,-231.0,0.00014219,2]
[422980564,1779700247000,-578.95,0.00014246,2]